bitfinex/quotes_SOLUSD_20251030
["timestamp","ask_amount","ask_price","bid_price","bid_amount"]
[1761853456290,20.592,180.05,180.01,5.89165195]
[1761853456497,20.592,180.05,179.99,9.78882769]
[1761853456498,5.89165195,180.05,179.99,9.78882769]
[1761853456689,5.89165195,180.05,179.95,20.592]
[1761853456690,5.89165195,180.04,179.96,9.78882769]
[1761853456871,11.44598342,180.04,179.97,6.57165195]
[1761853457065,11.44598342,180.04,179.97,0.68]
[1761853457371,11.44598342,180.04,179.97,6.57165195]
[1761853457598,20.592,180.04,179.97,6.57165195]
[1761853457773,20.592,180.05,180.0,5.89165195]
[1761853457972,20.592,180.05,180.01,0.68]
[1761853458791,20.592,180.05,180.01,6.23515615]
[1761853460184,20.592,180.05,180.01,6.23511928]
[1761853460378,5.89165195,180.08,180.01,6.23511928]
[1761853460559,5.89165195,180.08,179.97,0.68]
[1761853460560,5.89165195,180.04,179.97,0.68]
[1761853460757,5.89165195,180.0,179.9,0.2]
[1761853461004,5.89165195,179.97,179.91,0.68]
[1761853461165,20.592,180.0,179.94,0.68]
[1761853461488,26.48365195,180.0,179.94,0.68]
[1761853462175,32.03932797,180.0,179.94,6.23720567]
[1761853462857,26.14767602,180.0,179.93,0.2]
[1761853463214,5.89165195,179.98,179.93,5.75766653]
[1761853463558,5.89165195,179.98,179.93,6.43766653]
[1761853463785,5.89165195,179.97,179.93,0.2]
[1761853463970,5.89165195,179.97,179.93,6.43771498]
[1761853464562,5.89165195,179.97,179.93,0.2]
[1761853464759,0.4,180.01,179.94,0.68]
[1761853464965,20.592,180.02,179.94,6.57165195]
[1761853465287,0.4,180.01,179.93,0.2]
[1761853465478,4.0232513,180.01,179.93,0.2]
[1761853465879,0.4,180.0,179.93,0.2]
[1761853466192,5.89165195,179.94,179.93,0.2]
[1761853466393,5.55698707,179.96,179.93,0.2]
[1761853466602,5.89165195,179.94,179.93,0.2]
[1761853467459,26.48365195,179.94,179.9,0.2]
[1761853467662,5.89165195,179.91,179.9,0.2]
[1761853467866,20.592,179.93,179.9,0.2]
[1761853468094,20.592,179.91,179.9,0.2]
[1761853469082,5.89165195,179.95,179.9,0.88]
[1761853469295,5.89165195,179.97,179.91,0.68]
[1761853469494,20.592,179.96,179.91,0.68]
[1761853469811,5.89165195,179.97,179.91,0.68]
[1761853470107,26.48365195,179.97,179.91,0.68]
[1761853470473,26.48365195,179.97,179.91,6.57165195]
[1761853470671,5.89165195,179.98,179.92,5.89165195]
[1761853470871,5.89165195,179.98,179.92,6.57165195]
[1761853471065,5.55499398,180.02,179.95,5.89165195]
[1761853471306,5.55499398,180.02,179.96,0.68]
[1761853471307,11.44664593,180.02,179.96,0.68]
[1761853471471,26.48365195,180.01,179.96,0.68]
[1761853471902,5.89165195,180.02,179.96,0.68]
[1761853472103,20.592,180.01,179.96,0.68]
[1761853472307,32.0389037,180.01,179.96,0.68]
[1761853472474,5.89165195,180.0,179.93,9.78882769]
[1761853472802,5.89165195,180.0,179.94,12.12903719]
[1761853472984,5.89165195,180.0,179.9,0.2]
[1761853472985,5.89165195,179.97,179.91,0.68]
[1761853473182,5.89165195,179.96,179.91,0.68]
[1761853474286,0.2,180.0,179.91,0.68]
[1761853474287,5.55620096,179.98,179.92,5.55802578]
[1761853474611,5.89165195,179.96,179.92,5.55802578]
[1761853474896,5.89165195,179.96,179.92,6.23802578]
[1761853475494,20.592,180.0,179.93,10.46882769]
[1761853475686,20.592,180.0,179.95,5.89165195]
[1761853475883,20.592,180.0,179.96,0.68]
[1761853476297,20.592,180.0,179.96,6.23668245]
[1761853476707,20.592,180.0,179.97,0.68]
[1761853477606,11.44667051,180.02,179.97,6.23627033]
[1761853477803,11.44667051,180.02,179.98,0.68]
[1761853478189,5.89165195,180.01,179.96,5.55675608]
[1761853478391,5.89165195,180.01,179.96,6.23675608]
[1761853478696,5.89165195,180.03,179.97,0.68]
[1761853479086,20.592,180.04,179.98,5.89165195]
[1761853479306,20.592,180.02,179.97,6.57165195]
[1761853479508,20.592,180.02,179.97,6.23637945]
[1761853479720,5.89165195,180.01,179.93,13.89357293]
[1761853479918,5.89165195,180.01,179.94,16.39047964]
[1761853480425,5.89165195,180.01,179.95,6.60165195]
[1761853480918,5.89165195,180.01,179.96,0.71]
[1761853481408,5.89165195,179.98,179.93,67.25766839]
[1761853481609,5.89165195,179.98,179.93,67.96766839]
[1761853481915,5.89165195,179.95,179.9,0.91]
[1761853482220,5.89165195,179.93,179.9,0.2]
[1761853482384,23.06532929,179.98,179.9,0.2]
[1761853482385,20.592,179.96,179.9,0.2]
[1761853482583,3.81862565,179.97,179.9,0.2]
[1761853482584,5.89165195,179.93,179.9,0.2]
[1761853482810,5.89165195,179.92,179.9,0.2]
[1761853483486,5.55740802,179.94,179.9,0.2]
[1761853483688,5.55704566,179.96,179.9,5.75862489]
[1761853483890,8.96904813,179.99,179.92,8.96904813]
[1761853484116,20.592,179.99,179.93,8.96904813]
[1761853484415,8.96904813,180.0,179.93,71.37904813]
[1761853484597,8.96904813,180.01,179.94,0.71]
[1761853484803,20.592,180.01,179.94,9.67904813]
[1761853485100,29.56104813,180.01,179.94,9.67904813]
[1761853485299,8.96904813,180.0,179.94,0.71]
[1761853485503,14.52473224,180.0,179.94,6.26715991]
[1761853486115,14.52473224,180.0,179.94,0.71]
[1761853486420,14.52473224,180.0,179.9,0.2]
[1761853486421,8.96904813,179.95,179.9,0.2]
[1761853486714,20.592,179.98,179.9,0.2]
[1761853486715,8.96904813,179.91,179.9,0.2]
[1761853487432,8.96904813,179.92,179.9,0.2]
[1761853487716,3.64439389,179.93,179.9,0.2]
[1761853487923,3.64439389,179.93,179.9,0.91]
[1761853488117,3.64465006,179.93,179.9,0.91]
[1761853488411,3.64465006,179.93,179.9,0.2]
[1761853489524,3.64465006,179.93,179.9,5.75859067]
[1761853489692,3.64465006,179.93,179.9,0.91]
[1761853489895,3.64465006,179.93,179.9,0.2]
[1761853490289,3.64465006,179.92,179.9,0.2]
[1761853490510,3.64465006,179.93,179.9,0.2]
[1761853490711,3.64465006,179.92,179.9,0.2]
[1761853490906,35.11854596,179.94,179.9,0.2]
[1761853490907,3.64465006,179.93,179.9,0.2]
[1761853491210,3.64465006,179.92,179.9,0.2]
[1761853491413,3.64465006,179.91,179.9,5.75858539]
[1761853491725,24.23665006,179.93,179.9,5.75858539]
[1761853491929,3.64465006,179.92,179.9,5.75858539]
[1761853492234,3.64465006,179.94,179.91,0.71]
[1761853492420,4.5058943,179.97,179.9,0.2]
[1761853492421,3.64465006,179.93,179.9,0.2]
[1761853492606,3.64465006,179.92,179.9,0.2]
[1761853492806,3.64465006,179.94,179.9,6.46854945]
[1761853493134,3.64465006,179.93,179.9,6.46854945]
[1761853493334,3.64465006,179.92,179.9,6.46854945]
[1761853493631,4.5058943,179.96,179.92,5.55802578]
[1761853493815,3.66113633,179.95,179.92,5.55802578]
[1761853493999,3.66113633,179.94,179.92,6.26802578]
[1761853494332,3.66113633,179.93,179.92,6.26802578]
[1761853495204,3.66113633,179.96,179.92,20.16309025]
[1761853495403,3.66113633,179.95,179.93,9.67904813]
[1761853495605,3.66113633,179.94,179.93,6.26771688]
[1761853495831,3.66113633,179.94,179.93,14.52676501]
[1761853496215,3.66113633,179.94,179.93,15.23676501]
[1761853496531,3.66113633,179.97,179.94,9.78882769]
[1761853496701,4.5058943,180.0,179.94,9.78882769]
[1761853496702,3.66113633,179.96,179.95,8.96904813]
[1761853497107,20.592,180.01,179.95,9.67904813]
[1761853497601,4.5058943,180.05,180.0,5.55555555]
[1761853497820,20.592,180.05,180.01,8.96904813]
[1761853498008,20.592,180.03,180.01,8.96904813]
[1761853498322,4.5058943,180.06,180.02,0.71]
[1761853498504,5.55331489,180.08,180.02,0.71]
[1761853498505,4.5058943,180.07,180.02,0.71]
[1761853498819,10.05920919,180.08,180.03,8.96904813]
[1761853499032,30.65120919,180.08,180.03,8.96904813]
[1761853499347,20.592,180.08,180.04,0.71]
[1761853499916,4.5058943,180.1,180.05,5.55401277]
[1761853500115,4.5058943,180.11,180.05,29.11809283]
[1761853500315,28.90665831,180.14,180.05,29.11809283]
[1761853500316,4.5058943,180.12,180.05,5.55401277]
[1761853500525,20.592,180.11,180.06,8.96904813]
[1761853500714,4.5058943,180.11,180.06,8.96904813]
[1761853500918,4.5058943,180.12,180.06,8.96904813]
[1761853501133,10.05788059,180.12,180.06,8.96904813]
[1761853501430,4.5058943,180.15,180.08,8.96904813]
[1761853501639,27.45012024,180.18,180.08,8.96904813]
[1761853501930,5.55063736,180.16,180.1,14.52135856]
[1761853502346,14.81917108,180.18,180.1,14.52135856]
[1761853502654,14.81917108,180.18,180.09,6.26276467]
[1761853502655,20.592,180.15,180.09,6.26276467]
[1761853502831,8.96904813,180.16,180.05,9.78882769]
[1761853503027,8.96904813,180.06,179.98,0.71]
[1761853503233,8.96904813,180.06,179.98,9.67904813]
[1761853503536,8.96904813,180.04,179.98,0.71]
[1761853504031,14.52340808,180.04,179.98,6.2660661]
[1761853504608,8.96904813,180.02,179.95,0.71]
[1761853504807,8.96904813,180.02,179.93,19.45200129]
[1761853505109,9.16904813,180.03,179.94,9.67904813]
[1761853505313,4.7058943,180.09,180.0,8.96904813]
[1761853505648,20.592,180.07,180.02,8.96904813]
[1761853505822,29.56104813,180.06,180.02,5.55493834]
[1761853506141,8.96904813,180.09,180.02,14.52398647]
[1761853506343,8.96904813,180.09,180.02,15.23398647]
[1761853506344,14.52183013,180.09,180.02,15.23398647]
[1761853506523,8.96904813,180.07,180.02,0.71]
[1761853506722,8.96904813,180.07,180.0,14.52437647]
[1761853506944,8.96904813,180.07,180.01,0.71]
[1761853507459,8.96904813,180.04,179.98,8.96904813]
[1761853507648,8.96904813,180.04,179.97,19.46787582]
[1761853507831,8.96904813,180.04,179.98,5.5561729]
[1761853508129,8.96904813,180.05,179.98,15.23522103]
[1761853508328,8.96904813,180.05,179.99,0.71]
[1761853509351,8.96904813,180.04,179.99,0.71]
[1761853510242,20.592,180.06,179.99,0.71]
[1761853510243,26.14572227,180.06,180.0,5.55555555]
[1761853510448,8.96904813,180.05,179.99,6.2658339]
[1761853510848,8.96904813,180.02,179.96,0.71]
[1761853511020,8.96904813,180.02,179.97,0.71]
[1761853511437,8.96904813,180.0,179.95,9.78882769]
[1761853511650,8.96904813,179.97,179.93,0.71]
[1761853511952,8.96904813,179.97,179.91,8.96904813]
[1761853511953,8.96904813,179.94,179.9,0.91]
[1761853512117,8.96904813,179.93,179.9,5.75862444]
[1761853512449,8.96904813,179.94,179.91,0.71]
[1761853512744,8.96904813,179.95,179.91,0.71]
[1761853512945,8.96904813,179.94,179.91,0.71]
[1761853513356,8.96904813,179.93,179.9,0.2]
[1761853513516,8.96904813,179.93,179.9,5.75862684]
[1761853513717,8.96904813,179.93,179.9,0.2]
[1761853513917,0.2,179.97,179.9,0.91]
[1761853514147,0.2,179.97,179.91,6.26812025]
[1761853514148,8.96904813,179.95,179.91,6.26812025]
[1761853514456,8.96904813,179.95,179.9,9.16904813]
[1761853514457,8.96904813,179.93,179.9,0.2]
[1761853514830,8.96904813,179.93,179.9,5.75864046]
[1761853515156,8.96904813,179.95,179.9,20.36524968]
[1761853515527,8.96904813,179.95,179.91,0.68]
[1761853516226,8.96904813,179.94,179.9,0.2]
[1761853516445,5.75681125,179.96,179.9,0.2]
[1761853516623,8.96904813,179.92,179.9,0.2]
[1761853516936,8.96904813,179.94,179.9,6.43855158]
[1761853517327,29.56104813,179.96,179.91,0.68]
[1761853518246,29.56104813,179.96,179.92,5.55802578]
[1761853518434,20.592,179.96,179.92,5.55802578]
[1761853518631,29.56104813,179.96,179.92,0.68]
[1761853518966,8.96904813,180.03,179.96,9.78882769]
[1761853519120,8.96904813,180.05,179.99,8.96904813]
[1761853519320,10.25910574,180.08,179.97,0.68]
[1761853519547,8.96904813,180.02,179.97,0.68]
[1761853519744,8.96904813,179.98,179.93,0.68]
[1761853520046,8.96904813,180.01,179.95,18.75787582]
[1761853520228,8.96904813,180.01,179.96,5.55679039]
[1761853520435,0.2,180.04,179.96,0.68]
[1761853520436,8.96904813,180.0,179.96,0.68]
[1761853520642,8.96904813,179.99,179.93,9.64904813]
[1761853520840,8.96904813,179.98,179.94,0.68]
[1761853521038,8.96904813,179.99,179.94,9.64904813]
[1761853521241,20.592,179.92,179.85,0.68]
[1761853521446,8.96904813,179.91,179.88,5.5590209]
[1761853521651,8.96904813,179.91,179.87,6.23951678]
[1761853521848,8.96904813,179.91,179.87,6.23952438]
[1761853522049,8.96904813,179.91,179.87,0.68]
[1761853522667,14.52738285,179.91,179.87,0.68]
[1761853522865,8.96904813,179.91,179.87,6.23952778]
[1761853523446,8.96904813,179.91,179.88,5.55923683]
[1761853523860,8.96904813,179.91,179.87,6.23951148]
[1761853524235,8.96904813,179.91,179.84,9.78882769]
[1761853524439,14.52738285,179.91,179.85,0.68]
[1761853524640,14.52738285,179.91,179.85,6.24014006]
[1761853524938,5.55805567,179.92,179.84,9.78882769]
[1761853525154,8.96904813,179.91,179.87,5.55953066]
[1761853525663,8.96904813,179.91,179.86,6.23981637]
[1761853525862,29.56104813,179.91,179.86,0.68]
[1761853526172,29.56104813,179.91,179.86,6.23987416]
[1761853526366,29.56104813,179.91,179.86,0.68]
[1761853526567,27.780761,179.99,179.86,0.68]
[1761853526568,20.792,179.98,179.9,6.43864369]
[1761853526741,8.96904813,179.93,179.9,6.43864369]
[1761853526947,8.96904813,179.94,179.91,0.68]
[1761853527255,18.59460723,180.01,179.91,9.64904813]
[1761853527445,8.96904813,179.97,179.92,0.68]
[1761853527642,8.96904813,179.96,179.92,0.68]
[1761853528067,20.592,179.99,179.92,0.68]
[1761853528272,8.96904813,179.97,179.92,0.68]
[1761853528769,8.96904813,179.96,179.92,6.23786372]
[1761853529066,8.96904813,179.96,179.92,0.68]
[1761853529238,8.96904813,179.95,179.9,5.7583689]
[1761853529447,8.96904813,179.93,179.9,0.2]
[1761853529644,8.96904813,179.92,179.9,0.2]
[1761853529846,19.64686255,179.98,179.9,0.2]
[1761853530044,8.96904813,179.92,179.9,0.2]
[1761853530772,8.96904813,179.93,179.91,0.68]
[1761853530956,8.96904813,179.92,179.9,0.2]
[1761853531271,8.96904813,179.92,179.9,5.75851896]
[1761853531581,8.96904813,179.94,179.9,6.43851896]
[1761853531870,8.96904813,179.95,179.91,0.68]
[1761853532365,8.96904813,179.96,179.91,71.34904813]
[1761853532570,5.55491143,180.03,179.94,8.96904813]
[1761853532750,5.55491143,180.03,179.96,5.55679039]
[1761853532751,8.96904813,180.01,179.96,5.55679039]
[1761853533145,8.96904813,180.01,179.97,0.68]
[1761853533454,8.96904813,179.98,179.92,8.96904813]
[1761853533661,8.96904813,179.98,179.93,0.68]
[1761853533973,8.96904813,179.95,179.93,0.68]
[1761853534271,8.96904813,179.97,179.93,0.68]
[1761853534469,19.64148588,180.03,179.94,8.96904813]
[1761853534681,5.55491143,180.03,179.95,8.96904813]
[1761853534974,8.96904813,180.01,179.96,5.55679039]
[1761853535188,8.96904813,180.01,179.96,6.23679039]
[1761853535345,8.96904813,180.01,179.97,0.68]
[1761853535666,8.96904813,180.0,179.97,0.68]
[1761853535875,26.14723465,180.02,179.89,0.28432314]
[1761853535876,20.592,179.95,179.89,0.68]
[1761853536055,8.96904813,179.92,179.89,0.68]
[1761853536371,8.96904813,179.94,179.9,0.88]
[1761853536586,8.96904813,179.93,179.9,6.43858454]
[1761853536978,8.96904813,179.93,179.9,0.88]
[1761853537173,8.96904813,179.93,179.9,0.2]
[1761853537391,8.96904813,179.93,179.9,6.43857837]
[1761853537774,8.96904813,179.93,179.91,0.68]
[1761853538098,8.96904813,179.92,179.9,0.2]
[1761853538268,5.75721152,179.95,179.9,0.2]
[1761853538475,8.96904813,179.91,179.9,0.2]
[1761853539196,14.72738285,179.91,179.9,0.2]
[1761853539884,14.52738285,179.91,179.9,0.2]
[1761853540284,14.72738285,179.91,179.9,0.2]
[1761853541003,14.52738285,179.91,179.9,0.2]
[1761853542293,14.72738285,179.91,179.9,0.2]
[1761853542605,35.31938285,179.91,179.9,0.2]
[1761853543305,32.05603667,179.91,179.9,0.2]
[1761853543678,32.25603667,179.91,179.9,0.2]
[1761853543874,26.15033472,179.91,179.9,0.2]
[1761853544079,26.49770195,179.91,179.9,0.2]
[1761853544484,4.5058943,179.97,179.91,9.78882769]
[1761853544485,5.90570195,179.97,179.91,9.78882769]
[1761853544707,5.90570195,179.99,179.93,5.90570195]
[1761853544881,11.46187485,179.98,179.93,11.46336039]
[1761853545081,5.90570195,179.98,179.94,0.7]
[1761853545285,26.49770195,179.99,179.94,6.60570195]
[1761853545484,5.55559602,180.0,179.94,6.60570195]
[1761853545807,5.90570195,180.0,179.95,0.7]
[1761853546006,5.90570195,180.0,179.95,6.60570195]
[1761853546198,32.05288498,180.02,179.96,5.90570195]
[1761853546397,5.90570195,180.03,179.98,5.90570195]
[1761853546594,5.55370432,180.06,179.98,5.90570195]
[1761853546903,4.5058943,180.07,180.0,5.55555555]
[1761853546904,5.90570195,180.05,180.0,5.55555555]
[1761853547107,26.49770195,180.05,180.01,0.7]
[1761853547609,10.05901684,180.08,180.01,0.7]
[1761853547916,5.90570195,180.11,180.05,5.90570195]
[1761853548123,5.55127609,180.14,180.06,5.90570195]
[1761853548417,20.592,180.11,180.07,0.7]
[1761853548580,5.55078243,180.16,180.08,5.90570195]
[1761853548779,5.90570195,180.13,180.08,5.90570195]
[1761853548975,5.55078243,180.16,180.09,0.7]
[1761853549179,26.49770195,180.13,180.09,0.7]
[1761853549378,5.90570195,180.13,180.09,0.7]
[1761853549792,26.49770195,180.13,180.09,0.7]
[1761853550789,5.90570195,180.1,180.05,10.48882769]
[1761853550988,5.90570195,180.1,180.06,0.7]
[1761853551889,5.90570195,180.11,180.06,0.7]
[1761853553014,5.90570195,180.11,180.07,5.5533959]
[1761853553198,20.592,180.13,180.08,15.69452964]
[1761853553398,20.592,180.13,180.08,16.39452964]
[1761853553725,5.90570195,180.09,180.05,0.7]
[1761853553891,0.2,180.12,179.99,20.592]
[1761853553892,5.90570195,180.06,180.01,0.7]
[1761853554087,5.90570195,180.04,180.01,0.7]
[1761853554289,5.90570195,180.05,180.01,0.7]
[1761853554490,3.655836,180.09,180.01,0.7]
[1761853554491,5.90570195,180.04,180.01,0.7]
[1761853555113,5.90570195,180.04,180.02,5.55493834]
[1761853555518,5.90570195,180.06,180.03,0.7]
[1761853556010,5.90570195,180.07,180.03,0.7]
[1761853556400,5.90570195,180.06,180.03,0.7]
[1761853558015,5.90570195,180.06,180.03,6.25458387]
[1761853558206,5.90570195,180.06,180.03,67.95458387]
[1761853558418,5.90570195,180.07,180.04,0.7]
[1761853558802,5.90570195,180.08,180.04,0.7]
[1761853559002,26.49770195,180.09,180.04,68.30570195]
[1761853559323,20.592,180.09,180.06,5.90570195]
[1761853559524,20.592,180.09,180.05,6.60570195]
[1761853559820,29.79856456,180.09,180.04,67.60570195]
[1761853560005,26.14479152,180.09,180.05,0.7]
[1761853560199,20.592,180.11,180.07,5.90570195]
[1761853560519,20.592,180.1,180.07,67.60570195]
[1761853560720,3.65360343,180.12,180.08,0.7]
[1761853560921,20.592,180.12,180.08,0.7]
[1761853561129,5.90570195,180.1,180.02,71.48882769]
[1761853561338,5.90570195,180.05,180.0,0.7]
[1761853561622,3.65360343,180.07,180.0,0.7]
[1761853561826,5.90570195,180.02,179.97,0.7]
[1761853562192,5.90570195,180.01,179.97,0.7]
[1761853562399,5.90570195,180.02,179.97,0.7]
[1761853562814,5.90570195,180.03,179.98,11.46187485]
[1761853563125,5.90570195,180.04,179.98,11.46187485]
[1761853563332,5.90570195,180.04,179.99,0.7]
[1761853563624,5.90570195,180.0,179.96,0.7]
[1761853563787,5.90570195,179.99,179.95,5.55708784]
[1761853563988,5.90570195,179.97,179.93,0.7]
[1761853564515,5.90570195,179.95,179.9,0.9]
[1761853564716,26.49770195,179.95,179.9,0.9]
[1761853565017,26.49770195,179.97,179.91,6.60570195]
[1761853565223,26.49770195,179.97,179.92,0.7]
[1761853565402,5.90570195,179.96,179.92,0.7]
[1761853565914,20.592,179.97,179.92,6.60570195]
[1761853566118,3.65314277,179.98,179.92,0.7]
[1761853566310,15.1150235,179.98,179.93,0.7]
[1761853566617,4.5660656,180.03,179.95,5.90570195]
[1761853566832,8.22012184,180.05,179.99,5.55586421]
[1761853567000,5.90570195,180.05,180.0,5.90570195]
[1761853567193,5.90570195,180.05,179.99,12.16156616]
[1761853567916,5.90570195,180.02,179.96,6.60570195]
[1761853568122,5.90570195,180.01,179.96,6.60570195]
[1761853568317,5.90570195,179.99,179.93,6.60570195]
[1761853568523,5.90570195,179.98,179.93,0.7]
[1761853568713,20.592,180.0,179.93,0.7]
[1761853568714,5.90570195,179.97,179.93,0.7]
[1761853568922,3.65405624,179.99,179.93,12.16326309]
[1761853569097,3.65405624,179.99,179.96,9.78882769]
[1761853569422,9.55975819,180.03,179.97,6.62570195]
[1761853569611,5.90570195,180.03,179.97,6.62570195]
[1761853569809,20.592,180.04,179.99,5.90570195]
[1761853570013,20.592,180.04,180.02,5.90570195]
[1761853570014,3.65405624,180.04,180.02,5.90570195]
[1761853570198,9.55975819,180.07,180.02,5.90570195]
[1761853570401,9.55975819,180.07,180.02,6.62570195]
[1761853570603,9.55975819,180.07,179.99,0.72]
[1761853570604,26.49770195,180.07,179.99,0.72]
[1761853570810,9.20788186,180.06,180.01,5.90570195]
[1761853571018,5.55382562,180.06,180.0,5.55555555]
[1761853571196,5.55382562,180.06,180.01,5.90570195]
[1761853571611,9.20788186,180.06,180.01,6.62570195]
[1761853572003,5.90570195,180.02,179.93,21.312]
[1761853572229,5.90570195,180.02,179.97,5.90570195]
[1761853572409,9.55975819,180.02,179.97,5.90570195]
[1761853572798,5.90570195,180.01,179.96,5.90570195]
[1761853573022,9.20903057,180.02,179.97,6.62570195]
[1761853573223,9.55975819,180.02,179.97,6.62570195]
[1761853573404,3.65405624,180.02,179.98,0.72]
[1761853573914,15.11478404,180.02,179.97,0.72]
[1761853574116,3.65405624,180.02,179.98,0.72]
[1761853574321,15.11480292,180.02,179.97,6.62570195]
[1761853574525,3.65405624,180.02,179.98,6.62570195]
[1761853574916,3.65405624,180.02,179.99,0.72]
[1761853575228,33.8243429,180.09,179.99,0.72]
[1761853575229,4.5660656,180.11,180.02,9.78882769]
[1761853575431,15.11698025,180.13,180.07,5.90570195]
[1761853575634,20.592,180.1,180.08,5.90570195]
[1761853575826,26.49770195,180.1,180.04,0.7]
[1761853576029,30.15717359,180.09,180.04,0.7]
[1761853576222,9.56517359,180.08,180.02,5.90570195]
[1761853576418,3.65947164,180.09,180.04,5.90570195]
[1761853576633,5.90570195,180.09,180.03,6.60570195]
[1761853576935,5.90570195,180.09,179.99,5.55585067]
[1761853576936,11.46015203,180.04,179.99,5.90570195]
[1761853577136,5.90570195,180.04,179.98,11.46161372]
[1761853577339,11.45978302,180.05,179.99,6.60570195]
[1761853577508,5.55408107,180.05,179.99,6.60570195]
[1761853577708,3.65947164,180.07,180.03,5.90570195]
[1761853577952,3.65947164,180.07,180.04,5.90570195]
[1761853578116,24.25147164,180.08,180.05,6.60570195]
[1761853578311,20.592,180.08,180.06,5.90570195]
[1761853578621,4.5660656,180.16,180.07,5.90570195]
[1761853578830,9.21038318,180.17,180.11,5.90570195]
[1761853579026,20.592,180.16,180.11,11.45767771]
[1761853579321,3.65980497,180.16,180.13,5.90570195]
[1761853579528,0.1,180.18,180.11,6.25197576]
[1761853579529,20.592,180.17,180.11,6.25197576]
[1761853579736,24.25180497,180.17,180.12,0.7]
[1761853579923,3.65980497,180.17,180.13,5.90570195]
[1761853580122,20.592,180.17,180.13,5.90570195]
[1761853580338,24.25180497,180.17,180.13,6.60570195]
[1761853580542,24.25180497,180.17,180.09,5.55267247]
[1761853580720,3.65980497,180.17,180.13,5.90570195]
[1761853580926,20.592,180.17,180.1,0.7]
[1761853581126,29.80229155,180.17,180.13,5.90570195]
[1761853581327,3.65980497,180.16,180.13,5.90570195]
[1761853581532,3.65980497,180.16,180.13,0.7]
[1761853581734,20.592,180.17,180.13,6.60570195]
[1761853582043,3.75980497,180.18,180.16,5.90570195]
[1761853582215,3.75980497,180.18,180.17,6.60570195]
[1761853582216,0.1,180.18,180.17,6.60570195]
[1761853582836,0.1,180.18,180.17,0.7]
[1761853583323,0.1,180.18,180.17,12.15601554]
[1761853584534,0.1,180.18,180.17,6.60570195]
[1761853584749,0.1,180.18,180.11,0.28432314]
[1761853584939,0.1,180.18,180.17,5.90570195]
[1761853585258,0.1,180.18,180.17,11.45601554]
[1761853585445,0.1,180.18,180.17,0.7]
[1761853585644,0.1,180.18,180.12,0.7]
[1761853585848,5.65000672,180.18,180.14,5.90570195]
[1761853586026,11.55570867,180.18,180.12,0.7]
[1761853586228,11.55570867,180.18,180.0,13.97999999]
[1761853586229,5.90570195,180.16,180.09,0.7]
[1761853586446,9.56064405,180.17,180.11,5.90570195]
[1761853586645,9.56064405,180.17,180.07,15.69452964]
[1761853586646,24.2469421,180.17,180.07,15.69452964]
[1761853586848,5.90570195,180.16,180.01,13.88788007]
[1761853587053,5.90570195,180.04,179.99,6.89098999]
[1761853587261,5.90570195,180.01,179.99,6.89098999]
[1761853587623,9.76064405,180.0,179.99,6.89098999]
[1761853588150,18.03380423,180.0,179.99,6.89098999]
[1761853588454,17.83380423,180.0,179.99,6.89098999]
[1761853588656,13.46773863,180.0,179.99,6.89098999]
[1761853588859,18.03380423,180.0,179.99,6.89098999]
[1761853589235,23.58935978,180.0,179.99,6.89098999]
[1761853589636,23.38935978,180.0,179.99,6.89098999]
[1761853589945,9.76064405,180.0,179.99,6.89098999]
[1761853590142,23.59524624,180.0,179.99,6.89098999]
[1761853590481,20.592,179.97,179.9,0.2]
[1761853590639,5.90570195,179.92,179.9,0.2]
[1761853590969,5.90570195,179.91,179.9,0.2]
[1761853591274,11.46403667,179.91,179.9,0.2]
[1761853591637,11.66403667,179.91,179.9,0.2]
[1761853591836,28.82039089,179.91,179.9,1e-08]
[1761853592056,28.82039089,179.91,179.78,0.7]
[1761853592057,20.592,179.87,179.78,0.7]
[1761853592260,5.90570195,179.82,179.78,0.7]
[1761853592457,20.592,179.87,179.78,0.7]
[1761853592458,5.90570195,179.81,179.78,0.7]
[1761853592759,20.592,179.82,179.78,0.7]
[1761853592964,5.90570195,179.8,179.75,0.2]
[1761853593140,11.46763554,179.8,179.75,0.2]
[1761853593343,5.90570195,179.79,179.75,0.9]
[1761853593953,20.592,179.82,179.75,0.9]